Cogmind - Beta 15 @@@ ROGUE MODE // 2025.06.07 @ 13:32:39 Player: ldi (hl). (hl) Result: Destroyed by D-53 Grenadier with Mini Grenade Launcher Performance ------------- Evolutions (0) 0 Regions Visited (4) 800 Robots Destroyed (14) 70 Value Destroyed (363) 363 Prototype IDs (4) 80 Alien Tech Used (0) 0 Bonus (37) 37 TOTAL SCORE: 1350 Bonus ------- Follower Combat Kills 37 Cogmind --------- Core Integrity 0/250 Matter 260/300 Energy 100/100 System Corruption 0% Temperature Warm (196) Movement Core (50) Location -8/Recycling Parts ------- > --- POWER (1) -------- (None) > --- PROPULSION (2) --- (None) > --- UTILITY (2) ------ (None) > --- WEAPON (2) ------- (None) > --- INVENTORY (5) ---- Subdweller Power Source Subdweller Laser Pulse Rifle Rocket Launcher Scrap Shield Fragment (48) Peak State ------------ > --- POWER ------------ Nuclear Core > --- PROPULSION ------- Improved Aluminum Leg VSS Leg > --- UTILITY ---------- Signal Interpreter Hardened Medium Armor Plating > --- WEAPON ----------- Subdweller Laser Pulse Rifle > --- INVENTORY -------- Subdweller Power Source Rocket Launcher Scrap Shield Fragment [Rating: 17] Favorites ----------- Power Ion Engine Engine Ion Engine Power Core Nuclear Core Propulsion Aluminum Leg Leg Aluminum Leg Utility Signal Interpreter Device Heat Sink Storage Small Storage Unit Processor Signal Interpreter Protection Hardened Medium Armor Plating Weapon Medium Laser Energy Gun Medium Laser Energy Cannon Beam Cannon Ballistic Gun Assault Rifle Build | -11 -10 -10 -10 -8 ------- Run | Yrd Mat Min Sub Rec Slots Evolved . | . . . . . Power . | . . . . . Propulsion . | . . . . . Utility . | . . . . . Weapon . | . . . . . Parts Attached 16 | 6 2 . 2 6 Power 2 | 1 . . . 1 Engine 1 | 1 . . . . Core 1 | . . . . 1 Reactor . | . . . . . Propulsion 5 | 2 . . 1 2 Treads . | . . . . . Leg 5 | 2 . . 1 2 Wheel . | . . . . . Hover . | . . . . . Flight . | . . . . . Utility 4 | 1 2 . . 1 Device 1 | . 1 . . . Storage 1 | 1 . . . . Processor 1 | . 1 . . . Hackware . | . . . . . Protection 1 | . . . . 1 Artifact . | . . . . . Weapon 5 | 2 . . 1 2 Energy Gun 3 | 1 . . . 2 Energy Cannon 1 | . . . 1 . Ballistic Gun 1 | 1 . . . . Ballistic Cannon . | . . . . . Launcher . | . . . . . Special Weapon . | . . . . . Impact Weapon . | . . . . . Slashing Weapon . | . . . . . Piercing Weapon . | . . . . . Special Melee Weapon . | . . . . . Unidentified Prototypes . | . . . . . Parts Lost 4 | . . . . 4 Power . | . . . . . Propulsion 2 | . . . . 2 Utility 1 | . . . . 1 Weapon 1 | . . . . 1 Highest Loss Streak 4 | . . . . 4 To Critical Strikes . | . . . . . Average Backups 2 | . . 2 3 3 Power . | . . . . 1 Propulsion . | . . 1 . . Utility . | . . . . . Weapon 1 | . . 1 1 1 Tool/Special . | . . . . . Unused Backups 6 | . . 1 . 5 Power 1 | . . . . 1 Propulsion 2 | . . 1 . 1 Utility . | . . . . . Weapon 3 | . . . . 3 Tool/Special . | . . . . . Average Slot Usage (%) 97 | . 84 100 100 100 Engine 13 | . 14 14 14 10 Leg 28 | . 28 28 28 28 Device 12 | . 4 14 14 13 Processor 13 | . 8 14 14 14 Energy Gun 14 | . 14 14 14 14 Energy Cannon 5 | . . . 12 13 Ballistic Gun 8 | . 14 14 1 . Peak Build Rating 17 | 6 7 7 7 17 Average Rating 7 | 4 6 7 7 10 On Entrance 5 | . 5 7 7 7 Naked Turns 2 | . . . . 2 Heaviest Build 22 | 14 10 10 11 22 Greatest Support 25 | 20 20 20 20 25 Greatest Overweight (x) 1 | . . . . 1 Average Overweight (x) . | . . . . . Largest Inventory Capacity 8 | 8 5 5 5 5 Average Capacity 5 | 5 5 5 5 5 Most Carried 5 | 1 1 3 5 5 Average Carried 3 | . . 2 4 4 Final Capacity 5 | 5 5 5 5 5 Final Carried 5 | . 1 2 5 5 Class Distribution -------------------- 100% | Mutant Dominant Class ---------------- Mutant | -10/Materials Mutant | -10/Mines Mutant | -10/Subcaves Mutant | -8/Recycling Resources | -11 -10 -10 -10 -8 ----------- Run | Yrd Mat Min Sub Rec Matter Collected 391 | 245 31 85 20 10 Remotely . | . . . . . Salvage Created 413 | . 31 177 60 145 Parts 24 | . 1 11 7 5 Haulers Intercepted . | . . . . . Recyclers Shooed . | . . . . . Parts Field Recycled . | . . . . . Retrieved Matter . | . . . . . Parts Self-Destructed 16 | . . . 16 . Prevented . | . . . . . Kills | -11 -10 -10 -10 -8 ------- Run | Yrd Mat Min Sub Rec Combat Hostiles Destroyed 12 | . 1 5 3 3 Guns 10 | . 1 5 3 1 Cannons 2 | . . . . 2 Classes Destroyed 7 | . 1 2 1 3 Recycler 1 | . . 1 . . Turret 1 | . . . 1 . Swarmer 6 | . . 3 3 . Grunt 3 | . 1 2 . . Duelist 1 | . . . . 1 Sentry 1 | . . . . 1 Programmer 1 | . . . . 1 Best Kill Streak 3 | . 1 3 3 2 Combat Bots Only 3 | . 1 3 3 2 Max Kills in Single Turn 1 | . 1 1 1 1 Gunslinging . | . . . . . Exploded . | . . . . . Melee . | . . . . . Uniques/NPCs Destroyed . | . . . . . Combat | -11 -10 -10 -10 -8 -------- Run | Yrd Mat Min Sub Rec Hostile Shots Fired 142 | . 12 27 41 62 Missed 53 | . 5 8 20 20 Hits 89 | . 7 19 21 42 Projectile 89 | . 7 19 21 42 AOE 1 | . . . . 1 Damage Taken 966 | . 74 184 171 537 Core 251 | . . 43 49 159 Absorbed by Shields . | . . . . . Core Remaining (%) 100 | 100 . . . . Volleys Fired 47 | . 6 21 13 7 Largest 2 | . 2 2 2 2 Hottest 123 | . 70 70 110 123 Shots Fired 94 | . 12 42 26 14 Gun 76 | . 12 42 13 9 Cannon 18 | . . . 13 5 Launcher . | . . . . . Special . | . . . . . Kinetic 27 | . 6 21 . . Thermal 67 | . 6 21 26 14 Explosive . | . . . . . Electromagnetic . | . . . . . Robot Hit Streak 11 | . 3 7 9 11 Robot Miss Streak 4 | . 2 3 4 2 Penetration Max . | . . . . . Secondary Targets . | . . . . . Shots Hit Robots 61 | . 7 29 15 10 Core Hits 21 | . 2 10 5 4 Critical Kills . | . . . . . Critical Parts Destroyed . | . . . . . Critical Strikes 3 | . . 1 2 . Burn 3 | . . 1 2 . Melee Attacks . | . . . . . Impact . | . . . . . Slashing . | . . . . . Piercing . | . . . . . Sneak Attacks . | . . . . . Combat Hostiles . | . . . . . Follow-up Attacks . | . . . . . Damage Inflicted 892 | . 88 386 215 203 Guns 733 | . 88 386 110 149 Cannons 159 | . . . 105 54 Explosions . | . . . . . Melee . | . . . . . Ramming . | . . . . . Kinetic 235 | . 64 171 . . Thermal 657 | . 24 215 215 203 Explosive . | . . . . . Electromagnetic . | . . . . . Impact . | . . . . . Slashing . | . . . . . Piercing . | . . . . . Highest Corruption . | . . . . . Average Corruption . | . . . . . Corruption Purged . | . . . . . Corruption Blocked . | . . . . . Overload Shots . | . . . . . Overflow Damage . | . . . . . Projectiles . | . . . . . Explosions . | . . . . . Melee . | . . . . . Knockbacks . | . . . . . Impact . | . . . . . Kinetic . | . . . . . Secondary . | . . . . . Self-Inflicted Damage . | . . . . . Shots . | . . . . . Rammed . | . . . . . Targets Rammed . | . . . . . Kicked . | . . . . . Crushed . | . . . . . Highest Temperature 300 | . 81 2 . 300 Average Temperature 99 | . 36 2 . 142 Received Heat Transfer 258 | . 42 45 90 81 Effects 1 | . . . . 1 Energy Bleed 1 | . . . . 1 Siege Activations . | . . . . . Martial Activations . | . . . . . Shielding Activations . | . . . . . Robots Disrupted . | . . . . . Combat Hostiles . | . . . . . Robots Corrupted . | . . . . . Combat Hostiles . | . . . . . Parts Fried . | . . . . . Impact Corruptions . | . . . . . Robots Melted . | . . . . . Combat Hostiles . | . . . . . Parts Melted 3 | . . 2 1 . Heat Transferred 1839 | . 74 703 703 359 Parts Sabotaged . | . . . . . Parts Stolen . | . . . . . Parts Stripped . | . . . . . Power Chain Reactions . | . . . . . Alert | -11 -10 -10 -10 -8 ------- Run | Yrd Mat Min Sub Rec Maximum Alert Level . | . . . . . Low Security (%) 100 | 100 100 100 . 100 Level 1 . | . . . . . Level 2 . | . . . . . Level 3 . | . . . . . Level 4 . | . . . . . Level 5 . | . . . . . High Security . | . . . . . Max Security . | . . . . . Peak Influence 95 | . 40 95 . 59 Initial 59 | . . . . 59 Average 16 | . 7 20 . 16 Influence Increases 452 | . 50 155 174 73 Destroy 0b10 Robot/C 300 | . 20 100 120 60 Destroy 0b10 Robot/NC 5 | . . 5 . . Destroy Leader 20 | . . 20 . . Allied During Kill 9 | . . . 9 . Successful Hack 13 | . . . . 13 Lose Combat Pursuer 105 | . 30 30 45 . Influence Decreases 452 | . 50 155 50 197 Entered New Map 65 | . . . . 65 Time Decay 337 | . 40 155 30 112 Lost Part 20 | . . . . 20 Lost Ally 20 | . . . 20 . Purge Threat 10 | . 10 . . . Squads Dispatched . | . . . . . Investigation . | . . . . . Extermination . | . . . . . Reinforcement . | . . . . . Assault . | . . . . . Garrison . | . . . . . Intercept . | . . . . . Searches Triggered . | . . . . . Construction Impeded . | . . . . . Haulers Reinforced . | . . . . . Active Scanning Responses . | . . . . . Cargo Convoy Interrupts . | . . . . . Stealth | -11 -10 -10 -10 -8 --------- Run | Yrd Mat Min Sub Rec Distress Signals . | . . . . . Communications Jammed . | . . . . . Distress Signals . | . . . . . Times Spotted 28 | . 4 7 7 10 Peak Tracking Total 8 | . 2 3 6 8 Tactical Retreats 5 | . 2 1 2 . Traps | -11 -10 -10 -10 -8 ------- Run | Yrd Mat Min Sub Rec Traps Triggered . | . . . . . Indirectly . | . . . . . Trap Hack Attempts . | . . . . . Triggered . | . . . . . Disarmed . | . . . . . Reprogrammed . | . . . . . Reused . | . . . . . Traps Extracted . | . . . . . Installed . | . . . . . Triggered . | . . . . . Machines | -11 -10 -10 -10 -8 ---------- Run | Yrd Mat Min Sub Rec Machines Disabled 2 | . . . 2 . Max in Single Turn 1 | . . . 1 . Machines Repaired . | . . . . . Machines Dismantled . | . . . . . Machines Sabotaged . | . . . . . Overloaded Fab Kills . | . . . . . Hacking | -11 -10 -10 -10 -8 --------- Run | Yrd Mat Min Sub Rec Machines Accessed 6 | . 3 . . 3 Terminals 6 | . 3 . . 3 Fabricators . | . . . . . Repair Stations . | . . . . . Recycling Units . | . . . . . Scanalyzers . | . . . . . Garrison Access . | . . . . . Total Hacks 12 | . 5 . . 7 Successful 6 | . 2 . . 4 Failed 6 | . 3 . . 3 Catastrophic 2 | . 2 . . . Database Lockouts . | . . . . . Manual . | . . . . . Terminals 12 | . 5 . . 7 Fabricators . | . . . . . Repair Stations . | . . . . . Recycling Units . | . . . . . Scanalyzers . | . . . . . Garrison Access . | . . . . . Terminal Hacks 6 | . 2 . . 4 Record 1 | . 1 . . . Robot Analysis 1 | . . . . 1 Prototype ID Bank 2 | . . . . 2 Emergency Access Points 1 | . . . . 1 Unreport Threat 1 | . 1 . . . Fabricator Hacks . | . . . . . Repair Station Hacks . | . . . . . Recycling Unit Hacks . | . . . . . Scanalyzer . | . . . . . Garrison Access Hacks . | . . . . . Unauthorized Hacks . | . . . . . Terminals . | . . . . . Fabricators . | . . . . . Repair Stations . | . . . . . Recycling Units . | . . . . . Scanalyzers . | . . . . . Garrison Access . | . . . . . Data Cores Recovered . | . . . . . Used . | . . . . . Hacking Detections 4 | . 2 . . 2 Full Trace Events 2 | . 1 . . 1 Feedback Events . | . . . . . Feedback Blocked . | . . . . . Robot Schematics Acquired . | . . . . . Robots Built . | . . . . . Authchips . | . . . . . Time . | . . . . . Total Robot Build Rating . | . . . . . Part Schematics Acquired . | . . . . . Parts Built . | . . . . . Authchips . | . . . . . Time . | . . . . . Total Part Build Rating . | . . . . . Parts Repaired . | . . . . . Time . | . . . . . Parts Recycled . | . . . . . Recycled Matter . | . . . . . Retrieved Matter . | . . . . . Retrieved Components . | . . . . . Parts Scanalyzed . | . . . . . Part Schematics Acquired . | . . . . . Parts Damaged . | . . . . . Bothacking | -11 -10 -10 -10 -8 ------------ Run | Yrd Mat Min Sub Rec Used RIF Installer . | . . . . . Robots Hacked . | . . . . . Non-combat . | . . . . . Combat . | . . . . . Robot Hacks Applied . | . . . . . Relay Couplers Released . | . . . . . Fabnet Peak Effective % . | . . . . . Robots Rewired . | . . . . . Allies Hacked . | . . . . . Hacks Repelled . | . . . . . Allies | -11 -10 -10 -10 -8 -------- Run | Yrd Mat Min Sub Rec Total Allies 2 | . . 2 . . Largest Group 2 | . . 2 2 1 Highest-Rated Group 48 | . . 48 48 31 Highest-Rated Ally 31 | . . 31 31 31 Total Orders . | . . . . . Ally Attacks 18 | . . . 16 2 Total Damage 243 | . . . 191 52 Kills 3 | . . . 3 . Allies Corrupted . | . . . . . Allies Melted . | . . . . . Intel | -11 -10 -10 -10 -8 ------- Run | Yrd Mat Min Sub Rec Active Infowar (turns) . | . . . . . Robot Analysis Total 1 | . . . . 1 Derelict Logs Recovered 1 | . . 1 . . Drone Launches . | . . . . . Drone Recoveries . | . . . . . Exploration | -11 -10 -10 -10 -8 ------------- Run | Yrd Mat Min Sub Rec Turns Passed 1685 | 47 256 699 335 348 Spaces Moved 1231 | 33 192 499 241 266 Core 5 | 3 . . . 2 Treads . | . . . . . Legs 1226 | 30 192 499 241 264 Wheels . | . . . . . Hover . | . . . . . Flight . | . . . . . Fastest Speed 50 | 50 120 120 120 50 Average Speed 118 | 113 120 120 120 114 Slowest Speed 190 | 120 120 120 120 190 Overloaded Moves . | . . . . . Propulsion Burnouts . | . . . . . Robots Hopped . | . . . . . Potential Cave-ins . | . . . . . Cave-ins Triggered . | . . . . . Exploration Rate (%) 36 | 4 33 86 16 43 Regions Visited 4 Branch Regions 3 Pre-discovered Areas . | . . . . . Known Exits Taken 3 | . 1 1 1 . Unknown Exits Taken 1 | 1 . . . . Scrap Searched 1 | . . 1 . . Spaces Dug . | . . . . . Terrain Destroyed . | . . . . . Melee . | . . . . . Projectile . | . . . . . AOE . | . . . . . Terrain Rammed . | . . . . . Walls Destroyed . | . . . . . Machines Disabled . | . . . . . Actions | -11 -10 -10 -10 -8 --------- Run | Yrd Mat Min Sub Rec Total 1359 | 40 204 557 260 298 Wait 39 | . 4 35 . . Move 1227 | 32 191 498 240 266 Hop . | . . . . . Pick Up 13 | . 1 2 4 6 Fast Attach 9 | 6 2 . . 1 Attach 2 | . . . . 2 Detach 1 | 1 . . . . Swap 6 | . . . 2 4 Drop 11 | 1 . 1 1 8 Fire 47 | . 6 21 13 7 Melee . | . . . . . Ram . | . . . . . Kick . | . . . . . Crush . | . . . . . Escape Stasis . | . . . . . Rewire 4 | . . . . 4 Trap . | . . . . . Miscellaneous . | . . . . . Route ------- -11/Scrapyard -10/Materials -10/Mines (discovered 3 exits: *Mat x2 / *Sub) -10/Subcaves -8/Recycling (discovered 1 exit: *Fac) History --------- Turn | Location | Event 6 | -11/Scrapyard | Discovered new exit (range 16) 48 | -11/Scrapyard | Entered Materials 295 | -10/Materials | Discovered new exit (range 8) 302 | -10/Materials | Identified exit to Mines 304 | -10/Materials | Entered Mines 307 | -10/Mines | Met a Derelict bent on vengeance 309 | -10/Mines | Build established: Mutant 699 | -10/Mines | Discovered new exit (range 6) 704 | -10/Mines | Identified exit to Materials 855 | -10/Mines | Discovered exit to Materials (range 8) 894 | -10/Mines | Learned Materials garrison access intel 899 | -10/Mines | Found a hidden stash of uninstalled traps 976 | -10/Mines | Discovered new exit (range 14) 990 | -10/Mines | Identified exit to Subcaves 1003 | -10/Mines | Entered Subcaves 1003 | -10/Subcaves | Accompanied by 2 allies 1004 | -10/Subcaves | Approached by a straggling Scientist 1008 | -10/Subcaves | Led the pair of lost Derelicts to an unsafe place 1292 | -10/Subcaves | Discovered new exit (range 14) 1315 | -10/Subcaves | Identified exit to Recycling 1338 | -10/Subcaves | Entered Recycling 1338 | -8/Recycling | Accompanied by 1 ally 1620 | -8/Recycling | Discovered new exit (range 14) 1634 | -8/Recycling | Identified exit to Factory 1662 | -8/Recycling | Core integrity fell below 50% 1684 | -8/Recycling | Released all parts (5) 1686 | -8/Recycling | Destroyed by D-53 Grenadier with Mini Grenade Launcher Last Messages --------------- 01668_ Slug penetrates Wall. 01669_ R-06 Scavenger collects Imp. Ion Engine. 01677_ Slug penetrates Wall. 01680_ VSS Leg destroyed. 01682_ Slug penetrates Wall. 01683_ Wall collapses. 01683_ Overheating: Energy bleed (-40). 01683_ Y-45 Defender destroyed. 01683_ Imp. Aluminum Leg destroyed. 01683_ R-06 Scavenger collects Lgt. Treads. 01684_ Released Signal Interpreter. 01684_ Released Nuclear Core. 01684_ Released Hrd. Medium Armor Plating. 01684_ Released Sub. Laser. 01684_ Released Pulse Rifle. 01684_ Acquired Sub. Laser. 01684_ R-06 Scavenger collects Heat Sink. 01686_ Acquired Pulse Rifle. 01686_ R-06 Scavenger collects Imp. Ion Engine. 01686_ Slug penetrates S-10 Pest. Map ----- +----------------------------------------------------+ | ???????# ???????????????????????? | | ???????# ???????????????????????? | | ???????# ???????????????????????? | | ???????# ???????????????????????? | | ???????# #??????????????????????? | | ???????# #??????????????????????? | | ???????# #??????????????????????? | | ???????# ?????????############## | | ???????# #?????????# # | | ???????# #?????????#! ! # | | ??##???# ######????# # | | ??# ??# #"""#????# ] # | | ??#! ?# ##"Y"###### % # | | ??#%%!?# Y # !!# | | ??#[ %# / # | | ??# # r # ! # | | ??# h# %###### #* # | | ??#=]*%/h #????# # ! % # | | ??#] /;ssr###??# # % + | | ??#! % # ""#??# #### # | | ??# ?#d Y"#??# #??############/# | | ??# ?# ""#??# #?????????????#% | | ??# ??# ######/###???????????#%# | | ??# ??# !# ! ] #???????????# # | | ??##???# *# * #???????????# # | | ???????# @#! ] #???????????#+# | | ???????# # #???????????# | | ???????# + ] #???????????# | | ???????# # #???????????# | | ???????# # = #??????????## | | ??###### # #??????????# | | ??# # # #??????????## | | ??# !%# ##########??????????# | | ??# ] # #???????????????????## | | ??# % + #????????????????????# | | ??# # #????????????????????### | | ??# ![ # #??????????????????????? | | ??# !! + #???????????????????#### | | ??#% * # #?????????????????### | | ??# # #?????????????????#"" | | ??# # #?????????????????#"Y "" | | ??# # < #?????????????????#"" "" | | ??#! # #??????????????????## "" | | ??#] ! #####???????????????????# | | ??#####????????????????????????# | | ???????????????????????????????# | | ???????????????????????????????#### | | ??????????????????????????????????# | | ??????????????????????????????????? | | ??????????????????????????????????? | +----------------------------------------------------+ Best States ------------- Heat Dissipation 35 Energy Generation 14 Energy Capacity 250 Matter Stores 300 Matter Capacity 300 Sight Range 16 Terrain Scan Density 10 Armor Coverage 225 Evasion (%) 55 Item Schematics ----------------- None Robot Schematics ------------------ None Fabricated ------------ Nothing Repaired ---------- Nothing Alien Tech Used ----------------- None Achievements -------------- None Challenges ------------ None Game ------ Seed HeartDecoderNukerbomber Manual? 0 Play Time 00:15:57 Cumulative 639.6 hours Start 2025.06.07 @ 13:16:00 End 2025.06.07 @ 13:32:39 Sessions 1 Manual Loads 0 Difficulty Rogue Special Mode None Game No. 416 Rogue 416 Adventurer 0 Explorer 0 Win Type - Total 38 Types 25/1/6/6/0/0/0/0/0/0 Lore% 68 Gallery% 73 Achievement% 78 Wizard Run 0 Options --------- Layout 0 ASCII 0 Keyboard 1 Movement Numpad Keybinds 0 Fullscreen 2 Font 24/Smallcaps Map View 76x50 Zoom Use 0% Tactical HUD 1 Map Filters NONE Filters NONE Steam 1 RUN: df985664-f109-42bb-88c7-2fe79c8c26dc